Cogmind - Beta 15 @@@ ROGUE MODE // 2025.09.16 @ 19:30:36 Player: Petvaria Result: Destroyed by S-27 Virus with Autogun Performance ------------- Evolutions (5) 2500 Regions Visited (13) 2600 Robots Destroyed (65) 325 Value Destroyed (2558) 2558 Prototype IDs (20) 400 Alien Tech Used (1) 200 Bonus (2637) 2637 TOTAL SCORE: 11220 Bonus ------- Follower Combat Kills 37 Registered with UFD 300 Met Imprinter 300 Destroyed Z-Imprinter 1000 Met Warlord at Base 500 MAIN.C Attacked Warlord 500 Cogmind --------- Core Integrity 0/1000 Matter 285/300 Energy 6/100 System Corruption 11% Temperature Cool (0) Movement Core (50) Location -5/Warlord Parts ------- > --- POWER (1) -------- (None) > --- PROPULSION (5) --- (None) > --- UTILITY (7) ------ Improved Signal Interpreter Advanced Hacking Suite System Shield > --- WEAPON (5) ------- (None) > --- INVENTORY (5) ---- Zionite Metafield Generator Vortex Rifle (35) Vortex Rifle (35) Improved Proton Missile Launcher Peak State ------------ > --- POWER ------------ Zionite Light DM Reactor > --- PROPULSION ------- Flexi-carbon Leg Zionite Composite Leg I Zionite Composite Leg I Zionite Composite Leg I > --- UTILITY ---------- Experimental Heat Sink Experimental Heat Sink Large Storage Unit Zionite Biocell Improved Signal Interpreter Core Analyzer Zionite Light Carapace > --- WEAPON ----------- Zionite Laser-S Zionite Laser-S Zionite Phaser-S Zionite Phaser-S > --- INVENTORY -------- Zionite Light DM Reactor Advanced Heat Sink Zionite Biocell Zionite Metafield Generator Improved Sensor Array Experimental Reaction Control System Improved Utility Shielding Tesla Rifle Zionite Laser-S Zionite Laser-M Power Maul [Rating: 97] Favorites ----------- Power Ion Engine Engine Ion Engine Power Core Neutrino Core Reactor Zionite Light DM Reactor Propulsion Light Treads Treads Light Treads Leg Zionite Composite Leg I Wheel Compact Wheel Hover Unit Zionite Glidesys I Flight Unit Field Propulsion Drive Utility Large Storage Unit Device Improved Sensor Array Storage Large Storage Unit Processor Improved Signal Interpreter Hackware Advanced Hacking Suite Protection Insulated Plating Weapon Scythe Energy Gun Zionite Phaser-S Ballistic Gun Assault Rifle Launcher Heavy Missile Launcher Special Weapon Plasma Cutter Impact Weapon Makeshift Hammer Slashing Weapon Scythe Build | -11 -10 -10 -9 -6 -6 -6 -6 -6 -5 -5 -5 -5 -5 ------- Run | Yrd Mat Sub Scr Fac Low Low Zio Dee Pro Fac Upp Upp War Slots Evolved 10 | . . . . 8 . . . . . 2 . . . Power . | . . . . . . . . . . . . . . Propulsion 3 | . . . . 3 . . . . . . . . . Utility 5 | . . . . 5 . . . . . . . . . Weapon 2 | . . . . . . . . . . 2 . . . Parts Attached 102 | 6 1 . 5 12 1 4 3 17 3 17 7 7 19 Power 8 | 1 . . . . . 1 . 1 1 2 . . 2 Engine 4 | 1 . . . . . . . . . 1 . . 2 Core 1 | . . . . . . 1 . . . . . . . Reactor 3 | . . . . . . . . 1 1 1 . . . Propulsion 30 | 2 . . 1 3 1 2 1 4 . 3 5 . 8 Treads 7 | 2 . . 1 3 1 . . . . . . . . Leg 12 | . . . . . . 1 1 3 . 2 1 . 4 Wheel 1 | . . . . . . 1 . . . . . . . Hover 4 | . . . . . . . . 1 . . . . 3 Flight 6 | . . . . . . . . . . 1 4 . 1 Utility 36 | 1 1 . 1 7 . 1 2 7 2 5 2 4 3 Device 9 | . . . . 1 . . 1 3 1 1 . 1 1 Storage 3 | 1 1 . . . . . . 1 . . . . . Processor 9 | . . . 1 1 . . 1 . . 3 . 3 . Hackware 3 | . . . . . . . . . . . 2 . 1 Protection 12 | . . . . 5 . 1 . 3 1 1 . . 1 Artifact . | . . . . . . . . . . . . . . Weapon 28 | 2 . . 3 2 . . . 5 . 7 . 3 6 Energy Gun 11 | 1 . . . . . . . 4 . 4 . . 2 Energy Cannon . | . . . . . . . . . . . . . . Ballistic Gun 1 | 1 . . . . . . . . . . . . . Ballistic Cannon . | . . . . . . . . . . . . . . Launcher 8 | . . . 1 2 . . . . . 2 . 1 2 Special Weapon 3 | . . . 1 . . . . 1 . . . 1 . Impact Weapon 3 | . . . . . . . . . . 1 . 1 1 Slashing Weapon 2 | . . . 1 . . . . . . . . . 1 Piercing Weapon . | . . . . . . . . . . . . . . Special Melee Weapon . | . . . . . . . . . . . . . . Unidentified Prototypes 21 | . . . . . . . . 12 . . 1 . 8 Corrupted Parts 3 | . . . . . . . . . . . . 1 2 System Corruption 14 | . . . . . . . . . . . . 5 9 Parts Lost 48 | . . . . 5 . 1 . 2 5 13 18 . 4 Power 3 | . . . . . . . . . 1 . 2 . . Propulsion 17 | . . . . 2 . 1 . 1 1 1 9 . 2 Utility 15 | . . . . 1 . . . . 3 4 6 . 1 Weapon 13 | . . . . 2 . . . 1 . 8 1 . 1 Highest Loss Streak 17 | . . . . 2 . 1 . 1 3 4 17 . 3 To Critical Strikes 1 | . . . . . . 1 . . . . . . . Average Backups 11 | 3 6 7 13 11 12 13 14 14 12 13 11 5 5 Power 1 | 1 1 1 1 1 1 1 2 2 1 . . . . Propulsion 1 | 1 4 5 5 2 1 . . . . 2 3 . . Utility 4 | . . . 2 1 3 4 5 7 5 8 6 4 2 Weapon 3 | 1 1 1 2 4 5 4 5 5 5 . . . 2 Tool/Special . | . . . . . . . . . . . . . . Unused Backups 17 | . . . 4 1 . . . 7 . 1 1 . 3 Power 2 | . . . . . . . . 2 . . . . . Propulsion 4 | . . . 3 . . . . . . . 1 . . Utility 6 | . . . . . . . . 3 . 1 . . 2 Weapon 5 | . . . 1 1 . . . 2 . . . . 1 Tool/Special . | . . . . . . . . . . . . . . Average Slot Usage (%) 81 | . 85 85 87 84 92 90 94 99 93 83 56 38 49 Engine 4 | . 14 14 14 6 6 5 . . . 2 2 . 1 Reactor 1 | . . . . . . . . 5 5 2 . . . Treads 14 | . 28 28 28 32 32 29 16 3 . . . . . Leg 8 | . . . . . . . 9 25 27 24 11 . . Flight 1 | . . . . . . . . . . 3 1 5 6 Device 5 | . . . . 4 6 6 6 6 12 12 8 3 5 Storage 7 | . 14 14 14 6 6 6 6 9 13 7 3 . . Processor 11 | . . . 2 11 13 13 16 16 13 14 8 12 15 Hackware 2 | . . . . . . . . . . . 4 11 12 Protection 7 | . . . . 11 20 19 16 12 6 1 2 . . Energy Gun 5 | . 14 14 12 3 . . . 6 13 7 . . . Ballistic Gun 2 | . 14 14 11 1 . . . . . . . . . Impact Weapon 1 | . . . . . . . . . . 2 5 5 4 Slashing Weapon 1 | . . . . 3 6 6 6 . . . . . . Peak Build Rating 97 | 6 7 6 16 33 33 44 51 88 90 97 81 43 74 Average Rating 42 | 4 6 6 9 25 32 34 47 77 85 76 50 31 39 On Entrance 36 | . 6 6 6 15 30 33 44 51 88 87 81 24 43 Naked Turns . | . . . . . . . . . . . . . . Heaviest Build 54 | 14 29 29 33 38 36 46 50 54 43 52 52 14 8 Greatest Support 107 | 40 40 40 40 100 103 103 16 107 107 92 62 7 70 Greatest Overweight (x) 3 | . . . . . . 2 3 3 . 2 1 1 2 Average Overweight (x) . | . . . . . . . 2 . . . . . . Largest Inventory Capacity 15 | 8 15 15 15 15 15 15 15 15 15 15 15 5 5 Average Capacity 13 | 7 13 15 15 15 15 15 15 15 15 15 11 5 5 Most Carried 15 | 7 7 7 15 15 13 15 15 15 15 15 15 5 5 Average Carried 11 | 4 6 7 13 11 12 13 14 14 12 13 10 4 4 Final Capacity 15 | 8 15 15 15 15 15 15 15 15 15 15 5 5 5 Final Carried 15 | 6 7 7 15 14 13 15 14 15 13 15 5 4 4 Class Distribution -------------------- 51% | Mutant 19% | Derelict-Mutant 18% | Hacker-Mutant 7% | Scavenger-Mutant Dominant Class ---------------- Mutant | -10/Materials Mutant | -10/Subcaves Mutant | -9/Scraptown Mutant | -6/Factory Mutant | -6/Lower Caves Mutant | -6/Lower Caves Derelict-Mutant | -6/Zion Derelict-Mutant | -6/Deep Caves Mutant | -5/Proximity Caves Scavenger-Mutant | -5/Factory Scavenger-Mutant | -5/Upper Caves Hacker-Mutant | -5/Upper Caves Hacker-Mutant | -5/Warlord Resources | -11 -10 -10 -9 -6 -6 -6 -6 -6 -5 -5 -5 -5 -5 ----------- Run | Yrd Mat Sub Scr Fac Low Low Zio Dee Pro Fac Upp Upp War Matter Collected 2071 | 239 52 . 35 199 106 164 48 149 266 179 152 93 389 Remotely . | . . . . . . . . . . . . . . Salvage Created 2247 | . 106 . . 320 . 299 . 188 266 767 275 26 . Parts 128 | . 3 . . 11 . 8 . 29 17 44 15 1 . Haulers Intercepted 1 | . 1 . . . . . . . . . . . . Recyclers Shooed 1 | . . . . . . . . . . 1 . . . Parts Field Recycled . | . . . . . . . . . . . . . . Retrieved Matter . | . . . . . . . . . . . . . . Parts Self-Destructed 29 | . . . . . . 4 . . 16 . 9 . . Prevented . | . . . . . . . . . . . . . . Kills | -11 -10 -10 -9 -6 -6 -6 -6 -6 -5 -5 -5 -5 -5 ------- Run | Yrd Mat Sub Scr Fac Low Low Zio Dee Pro Fac Upp Upp War Combat Hostiles Destroyed 57 | . 1 . . 9 . 4 . 7 7 16 13 . . Guns 19 | . 1 . . 3 . . . . 7 8 . . . AOE 37 | . . . . 6 . 4 . 7 . 7 13 . . Classes Destroyed 13 | . 2 . . 6 . 1 . 1 1 1 . 1 . Worker 2 | . . . . 1 . . . . . 1 . . . Builder 4 | . . . . 1 . . . . . 3 . . . Hauler 1 | . 1 . . . . . . . . . . . . Minesweeper 1 | . . . . . . . . . . . . 1 . Swarmer 22 | . . . . 4 . 4 . . 4 6 4 . . Grunt 13 | . 1 . . 1 . . . . 1 4 6 . . Brawler 1 | . . . . 1 . . . . . . . . . Duelist 2 | . . . . . . . . . . 2 . . . Sentry 3 | . . . . 2 . . . . . 1 . . . Hunter 5 | . . . . . . . . . 2 1 2 . . Programmer 4 | . . . . 1 . . . . . 2 1 . . Z-Light 6 | . . . . . . . . 6 . . . . . Decomposer 2 | . . . . . . 2 . . . . . . . Packrat 3 | . . . . . . 3 . . . . . . . Best Kill Streak 11 | . 1 . . 4 . 4 . 6 4 6 11 1 . Combat Bots Only 11 | . 1 . . 4 . 4 . 6 4 5 11 . . Max Kills in Single Turn 4 | . 1 . . 3 . 2 . 2 1 4 3 1 . Gunslinging . | . . . . . . . . . . . . . . Exploded 3 | . . . . 2 . 2 . 2 . 3 3 . . Melee . | . . . . . . . . . . . . . . Uniques/NPCs Destroyed 1 | . . . . . . . . 1 . . . . . Z-Imprinter (-6/Deep Caves) Combat | -11 -10 -10 -9 -6 -6 -6 -6 -6 -5 -5 -5 -5 -5 -------- Run | Yrd Mat Sub Scr Fac Low Low Zio Dee Pro Fac Upp Upp War Hostile Shots Fired 565 | . 5 . . 204 . 2 . 33 81 91 97 13 39 Missed 187 | . 1 . . 58 . . . 12 28 34 28 8 18 Hits 378 | . 4 . . 146 . 2 . 21 53 57 69 5 21 Melee 10 | . . . . 1 . . . . . 8 . . 1 Projectile 368 | . 4 . . 145 . 2 . 21 53 49 69 5 20 AOE 1 | . . . . . . . . . . . . . 1 Critical Strikes 8 | . 1 . . . . 1 . . 1 2 2 . 1 Damage Taken 6528 | . 60 . . 1414 . 29 . 545 860 1243 1789 65 523 Core 1360 | . 31 . . 121 . . . 48 149 88 499 53 371 Absorbed by Shields 147 | . . . . . . . . 122 25 . . . . Redirected to Shielding 251 | . . . . 32 . . . 29 154 . 36 . . Ignored by Resistances 51 | . . . . 51 . . . . . . . . . Regen/Repaired (Parts) 112 | . . . 106 . . . . . . . . . 6 Core Remaining (%) 83 | 100 . . 87 . . . . . 62 . . . . Volleys Fired 127 | . 7 . . 31 . 2 . 16 22 37 11 . 1 Largest 4 | . 2 . . 2 . 1 . 2 2 4 1 . 1 Hottest 258 | . 70 . . 83 . 39 . 120 120 258 46 . 5 Shots Fired 220 | . 14 . . 47 . 2 . 18 44 84 10 . 1 Gun 176 | . 14 . . 39 . . . 2 44 77 . . . Cannon . | . . . . . . . . . . . . . . Launcher 42 | . . . . 8 . 2 . 15 . 7 10 . . Special 2 | . . . . . . . . 1 . . . . 1 Kinetic 20 | . 7 . . 13 . . . . . . . . . Thermal 65 | . 7 . . 26 . . . . . 32 . . . Explosive 42 | . . . . 8 . 2 . 15 . 7 10 . . Electromagnetic 22 | . . . . . . . . . . 22 . . . Phasic 69 | . . . . . . . . 2 44 23 . . . Robot Hit Streak 25 | . 5 . . 11 . . . 12 6 15 24 . 25 Robot Miss Streak 3 | . 2 . . 2 . . . 2 3 3 . . . Penetration Max . | . . . . . . . . . . . . . . Secondary Targets 3 | . . . . . . . . . 2 1 . . . Max Gunslinging Chain 1 | . . . . . . . . . 1 1 . . . Shots Hit Robots 162 | . 10 . . 39 . 5 . 11 25 59 11 1 1 Core Hits 145 | . 6 . . 24 . 10 . 26 9 42 28 . . Critical Kills . | . . . . . . . . . . . . . . Critical Parts Destroyed . | . . . . . . . . . . . . . . Critical Strikes 9 | . . . . 2 . . . . 4 3 . . . Burn 3 | . . . . 2 . . . . . 1 . . . Corrupt 1 | . . . . . . . . . . 1 . . . Intensify 5 | . . . . . . . . . 4 1 . . . Melee Attacks 36 | . . . . 10 . 5 . . . 15 5 1 . Impact 21 | . . . . . . . . . . 15 5 1 . Slashing 15 | . . . . 10 . 5 . . . . . . . Piercing . | . . . . . . . . . . . . . . Sneak Attacks 6 | . . . . . . 5 . . . . . 1 . Combat Hostiles . | . . . . . . . . . . . . . . Follow-up Attacks . | . . . . . . . . . . . . . . Damage Inflicted 8414 | . 126 . . 968 . 629 . 1365 858 2403 1928 137 . Guns 2913 | . 126 . . 402 . . . 33 858 1494 . . . Cannons 18 | . . . . . . . . . . 18 . . . Explosions 4944 | . . . . 566 . 311 . 1332 . 874 1861 . . Melee 522 | . . . . . . 318 . . . . 67 137 . Ramming 17 | . . . . . . . . . . 17 . . . Kinetic 189 | . 51 . . 138 . . . . . . . . . Thermal 1208 | . 75 . . 264 . . . . . 614 255 . . Explosive 4689 | . . . . 566 . 311 . 1332 . 874 1606 . . Electromagnetic 418 | . . . . . . . . . . 418 . . . Impact 222 | . . . . . . . . . . 18 67 137 . Slashing 318 | . . . . . . 318 . . . . . . . Piercing . | . . . . . . . . . . . . . . Phasic 1353 | . . . . . . . . 33 858 462 . . . Highest Corruption 11 | . . . . 3 3 3 3 . . 5 6 11 11 Average Corruption 3 | . . . . 1 3 3 3 . . 4 5 9 10 Corruption Purged . | . . . . . . . . . . . . . . Corruption Blocked . | . . . . . . . . . . . . . . Effects 46 | . . . . . 6 8 2 . . 14 11 4 1 Message Errors 13 | . . . . . 2 2 1 . . 6 . 1 1 Matter Fused 15 | . . . . . 2 4 1 . . 3 4 1 . Heat Flow Errors 3 | . . . . . . . . . . 1 1 1 . Energy Discharges 4 | . . . . . . . . . . 1 3 . . Parts Rejected 1 | . . . . . . . . . . 1 . . . Data Loss (minor) 6 | . . . . . 1 2 . . . 1 2 . . Alerts 3 | . . . . . 1 . . . . 1 . 1 . Weapon Failures 1 | . . . . . . . . . . . 1 . . Overload Shots . | . . . . . . . . . . . . . . Overflow Damage 300 | . . . . 21 . 100 . 2 . 24 56 97 . Projectiles 7 | . . . . . . . . . . 7 . . . Explosions 146 | . . . . 21 . 50 . 2 . 17 56 . . Melee 147 | . . . . . . 50 . . . . . 97 . Knockbacks 1 | . . . . . . . . . . . . 1 . Impact 1 | . . . . . . . . . . . . 1 . Kinetic . | . . . . . . . . . . . . . . Secondary . | . . . . . . . . . . . . . . Self-Inflicted Damage 232 | . . . . 107 . . . . . 33 92 . . Shots 9 | . . . . 3 . . . . . 1 5 . . Rammed 1 | . . . . 1 . . . . . . . . . Targets Rammed 4 | . . . . 1 . . . . . 3 . . . Kicked 3 | . . . . . . . . . . 3 . . . Crushed . | . . . . . . . . . . . . . . Highest Temperature 414 | . 72 . . 12 . . . 188 414 323 223 113 . Average Temperature 90 | . 30 . . 7 . . . 74 205 100 126 59 . Received Heat Transfer 1020 | . 54 . . 228 . . . 153 9 270 297 . 9 Siege Activations . | . . . . . . . . . . . . . . Martial Activations . | . . . . . . . . . . . . . . Shielding Activations . | . . . . . . . . . . . . . . Robots Disrupted . | . . . . . . . . . . . . . . Combat Hostiles . | . . . . . . . . . . . . . . Robots Corrupted 2 | . . . . . . . . . . 1 . 1 . Combat Hostiles 1 | . . . . . . . . . . 1 . . . Parts Fried 2 | . . . . . . . . . . 2 . . . Impact Corruptions 3 | . . . . . . . . . . 1 . 2 . Robots Melted . | . . . . . . . . . . . . . . Combat Hostiles . | . . . . . . . . . . . . . . Parts Melted 1 | . . . . 1 . . . . . . . . . Heat Transferred 2349 | . 222 . . 925 . . . . . 962 240 . . Parts Sabotaged 3 | . . . . . . . . . . . . . 3 Parts Stolen . | . . . . . . . . . . . . . . Parts Stripped . | . . . . . . . . . . . . . . Power Chain Reactions . | . . . . . . . . . . . . . . Alert | -11 -10 -10 -9 -6 -6 -6 -6 -6 -5 -5 -5 -5 -5 ------- Run | Yrd Mat Sub Scr Fac Low Low Zio Dee Pro Fac Upp Upp War Maximum Alert Level 1 | . . . . . . . . . . 1 . . . Low Security (%) 98 | 100 100 . . 100 . . . . . 94 . . . Level 1 1 | . . . . . . . . . . 5 . . . Level 2 . | . . . . . . . . . . . . . . Level 3 . | . . . . . . . . . . . . . . Level 4 . | . . . . . . . . . . . . . . Level 5 . | . . . . . . . . . . . . . . High Security . | . . . . . . . . . . . . . . Max Security . | . . . . . . . . . . . . . . Peak Influence 265 | . 25 . . 111 . . . . . 265 . . . Initial . | . . . . . . . . . . . . . . Average 31 | . 2 . . 34 . . . . . 45 . . . Influence Increases 1673 | . 52 . . 330 . 90 . . 190 651 340 20 . Destroy 0b10 Robot/C 1000 | . 20 . . 180 . 80 . . 140 320 260 . . Destroy 0b10 Robot/NC 40 | . 5 . . 10 . . . . . 20 . 5 . Destroy Leader 132 | . 12 . . 30 . 10 . . 20 40 20 . . Disable Machine 75 | . . . . 15 . . . . . 60 . . . Destroy Structure 156 | . . . . 50 . . . . . 106 . . . Lose Combat Pursuer 270 | . 15 . . 45 . . . . 30 105 60 15 . Influence Decreases 1673 | . 52 . . 314 16 90 . . 190 398 424 113 76 Entered New Map 210 | . . . . . 7 . . . . . 94 33 76 Time Decay 1082 | . 52 . . 284 9 80 . . 140 287 150 80 . Lost Part 381 | . . . . 30 . 10 . . 50 111 180 . . Squads Dispatched 5 | . . . . 2 . . . . . 3 . . . Investigation . | . . . . . . . . . . . . . . Extermination 3 | . . . . 2 . . . . . 1 . . . Reinforcement 2 | . . . . . . . . . . 2 . . . Assault . | . . . . . . . . . . . . . . Garrison . | . . . . . . . . . . . . . . Intercept . | . . . . . . . . . . . . . . Searches Triggered . | . . . . . . . . . . . . . . Construction Impeded . | . . . . . . . . . . . . . . Haulers Reinforced 1 | . . . . . . . . . . 1 . . . Active Scanning Responses . | . . . . . . . . . . . . . . Cargo Convoy Interrupts . | . . . . . . . . . . . . . . Stealth | -11 -10 -10 -9 -6 -6 -6 -6 -6 -5 -5 -5 -5 -5 --------- Run | Yrd Mat Sub Scr Fac Low Low Zio Dee Pro Fac Upp Upp War Distress Signals 6 | . . . . 1 . . . . . 4 . . 1 Communications Jammed . | . . . . . . . . . . . . . . Distress Signals . | . . . . . . . . . . . . . . Times Spotted 151 | . 2 . . 16 . 2 . 12 8 33 18 5 55 Peak Tracking Total 16 | . 2 . . 4 . 2 . 6 4 8 11 4 16 Tactical Retreats 12 | . 1 . . 2 . . . . 2 5 1 1 . Traps | -11 -10 -10 -9 -6 -6 -6 -6 -6 -5 -5 -5 -5 -5 ------- Run | Yrd Mat Sub Scr Fac Low Low Zio Dee Pro Fac Upp Upp War Traps Triggered 3 | . . . . 2 . . . . . 1 . . . Indirectly . | . . . . . . . . . . . . . . Trap Hack Attempts . | . . . . . . . . . . . . . . Triggered . | . . . . . . . . . . . . . . Disarmed . | . . . . . . . . . . . . . . Reprogrammed . | . . . . . . . . . . . . . . Reused . | . . . . . . . . . . . . . . Traps Extracted . | . . . . . . . . . . . . . . Installed . | . . . . . . . . . . . . . . Triggered . | . . . . . . . . . . . . . . Machines | -11 -10 -10 -9 -6 -6 -6 -6 -6 -5 -5 -5 -5 -5 ---------- Run | Yrd Mat Sub Scr Fac Low Low Zio Dee Pro Fac Upp Upp War Machines Disabled 16 | . . . . 1 . . 3 2 . 4 6 . . Max in Single Turn 3 | . . . . 1 . . 1 . . 1 3 . . Machines Repaired . | . . . . . . . . . . . . . . Machines Dismantled 3 | . . . . . . . 3 . . . . . . Machines Sabotaged . | . . . . . . . . . . . . . . Overloaded Fab Kills . | . . . . . . . . . . . . . . Hacking | -11 -10 -10 -9 -6 -6 -6 -6 -6 -5 -5 -5 -5 -5 --------- Run | Yrd Mat Sub Scr Fac Low Low Zio Dee Pro Fac Upp Upp War Machines Accessed 8 | . . . 1 . . 2 . . . 1 . . 4 Terminals . | . . . . . . . . . . . . . . Fabricators 1 | . . . . . . . . . . 1 . . . Repair Stations . | . . . . . . . . . . . . . . Recycling Units . | . . . . . . . . . . . . . . Scanalyzers . | . . . . . . . . . . . . . . Garrison Access . | . . . . . . . . . . . . . . Total Hacks 17 | . . . 1 . . 8 . . . 1 . . 7 Successful 17 | . . . 1 . . 8 . . . 1 . . 7 Failed . | . . . . . . . . . . . . . . Catastrophic . | . . . . . . . . . . . . . . Database Lockouts . | . . . . . . . . . . . . . . Manual . | . . . . . . . . . . . . . . Terminals . | . . . . . . . . . . . . . . Fabricators 1 | . . . . . . . . . . 1 . . . Repair Stations . | . . . . . . . . . . . . . . Recycling Units . | . . . . . . . . . . . . . . Scanalyzers . | . . . . . . . . . . . . . . Garrison Access . | . . . . . . . . . . . . . . Terminal Hacks 16 | . . . 1 . . 8 . . . . . . 7 Record 14 | . . . 1 . . 7 . . . . . . 6 Open Door 2 | . . . . . . 1 . . . . . . 1 Fabricator Hacks 1 | . . . . . . . . . . 1 . . . Network Status 1 | . . . . . . . . . . 1 . . . Repair Station Hacks . | . . . . . . . . . . . . . . Recycling Unit Hacks . | . . . . . . . . . . . . . . Scanalyzer . | . . . . . . . . . . . . . . Garrison Access Hacks . | . . . . . . . . . . . . . . Unauthorized Hacks . | . . . . . . . . . . . . . . Terminals . | . . . . . . . . . . . . . . Fabricators . | . . . . . . . . . . . . . . Repair Stations . | . . . . . . . . . . . . . . Recycling Units . | . . . . . . . . . . . . . . Scanalyzers . | . . . . . . . . . . . . . . Garrison Access . | . . . . . . . . . . . . . . Data Cores Recovered . | . . . . . . . . . . . . . . Used . | . . . . . . . . . . . . . . Hacking Detections . | . . . . . . . . . . . . . . Full Trace Events . | . . . . . . . . . . . . . . Feedback Events . | . . . . . . . . . . . . . . Feedback Blocked . | . . . . . . . . . . . . . . Robot Schematics Acquired . | . . . . . . . . . . . . . . Robots Built . | . . . . . . . . . . . . . . Authchips . | . . . . . . . . . . . . . . Time . | . . . . . . . . . . . . . . Total Robot Build Rating . | . . . . . . . . . . . . . . Part Schematics Acquired . | . . . . . . . . . . . . . . Parts Built . | . . . . . . . . . . . . . . Authchips . | . . . . . . . . . . . . . . Time . | . . . . . . . . . . . . . . Total Part Build Rating . | . . . . . . . . . . . . . . Parts Repaired . | . . . . . . . . . . . . . . Time . | . . . . . . . . . . . . . . Parts Recycled . | . . . . . . . . . . . . . . Recycled Matter . | . . . . . . . . . . . . . . Retrieved Matter . | . . . . . . . . . . . . . . Retrieved Components . | . . . . . . . . . . . . . . Parts Scanalyzed . | . . . . . . . . . . . . . . Part Schematics Acquired . | . . . . . . . . . . . . . . Parts Damaged . | . . . . . . . . . . . . . . Bothacking | -11 -10 -10 -9 -6 -6 -6 -6 -6 -5 -5 -5 -5 -5 ------------ Run | Yrd Mat Sub Scr Fac Low Low Zio Dee Pro Fac Upp Upp War Used RIF Installer . | . . . . . . . . . . . . . . Robots Hacked . | . . . . . . . . . . . . . . Non-combat . | . . . . . . . . . . . . . . Combat . | . . . . . . . . . . . . . . Robot Hacks Applied . | . . . . . . . . . . . . . . Relay Couplers Released . | . . . . . . . . . . . . . . Fabnet Peak Effective % . | . . . . . . . . . . . . . . Robots Rewired . | . . . . . . . . . . . . . . Allies Hacked . | . . . . . . . . . . . . . . Hacks Repelled . | . . . . . . . . . . . . . . Allies | -11 -10 -10 -9 -6 -6 -6 -6 -6 -5 -5 -5 -5 -5 -------- Run | Yrd Mat Sub Scr Fac Low Low Zio Dee Pro Fac Upp Upp War Total Allies 5 | . . . . . . . 5 . . . . . . Largest Group 5 | . . . . . . . 5 5 . . . . . Highest-Rated Group 95 | . . . . . . . 95 95 . . . . . Highest-Rated Ally 28 | . . . . . . . 28 28 . . . . . Total Orders . | . . . . . . . . . . . . . . Ally Attacks 56 | . . . . . . . . 56 . . . . . Total Damage 2083 | . . . . . . . . 2083 . . . . . Kills 11 | . . . . . . . . 11 . . . . . Allies Corrupted . | . . . . . . . . . . . . . . Allies Melted 1 | . . . . . . . . . . . . . 1 Intel | -11 -10 -10 -9 -6 -6 -6 -6 -6 -5 -5 -5 -5 -5 ------- Run | Yrd Mat Sub Scr Fac Low Low Zio Dee Pro Fac Upp Upp War Active Infowar (turns) 4697 | . . . . 904 443 617 442 . . 391 202 118 1580 Sensors 2999 | . . . . 904 443 617 442 . . 391 202 . . Traps 1698 | . . . . . . . . . . . . 118 1580 Robot Analysis Total . | . . . . . . . . . . . . . . Derelict Logs Recovered 8 | . . . . . 1 1 2 . 1 . 2 1 . Drone Launches . | . . . . . . . . . . . . . . Drone Recoveries . | . . . . . . . . . . . . . . Exploration | -11 -10 -10 -9 -6 -6 -6 -6 -6 -5 -5 -5 -5 -5 ------------- Run | Yrd Mat Sub Scr Fac Low Low Zio Dee Pro Fac Upp Upp War Turns Passed 10151 | 94 509 66 1365 1219 443 617 978 1393 468 931 319 169 1580 Spaces Moved 7573 | 58 173 38 837 640 268 363 674 1077 319 575 363 340 1848 Core 100 | 14 . . . . . . . . . . 19 . 67 Treads 2317 | 44 173 38 837 640 268 317 . . . . . . . Legs 1892 | . . . . . . . . 867 319 575 127 . 4 Wheels 930 | . . . . . . 46 674 210 . . . . . Hover 11 | . . . . . . . . . . . . . 11 Flight 2323 | . . . . . . . . . . . 217 340 1766 Fastest Speed 37 | 50 160 160 160 160 160 130 130 113 112 110 42 45 37 Average Speed 108 | 133 160 160 160 160 160 156 131 120 112 117 70 45 45 Slowest Speed 310 | 160 160 160 160 160 160 160 145 145 114 310 170 125 150 Overloaded Moves . | . . . . . . . . . . . . . . Propulsion Burnouts . | . . . . . . . . . . . . . . Robots Hopped 7 | . . . . . . . . . . . . 3 4 Potential Cave-ins 23 | . . . . . . . . . . 6 5 . 12 Cave-ins Triggered . | . . . . . . . . . . . . . . Exploration Rate (%) 44 | 5 36 6 55 23 45 45 77 70 59 16 61 43 88 Regions Visited 13 Branch Regions 10 Pre-discovered Areas 1 | . . . . . . 1 . . . . . . . Known Exits Taken 9 | . . . . 1 1 1 1 1 1 1 1 1 . Unknown Exits Taken 4 | 1 1 1 1 . . . . . . . . . . Scrap Searched 18 | . . . 5 . 2 2 4 . 1 . 2 2 . Spaces Dug 45 | . . . . 8 . . . . . 13 24 . . Terrain Destroyed 367 | . . . . 53 . 41 . 82 18 68 105 . . Melee 24 | . . . . 8 . . . . . 13 3 . . Projectile 27 | . . . . . . . . 1 18 8 . . . AOE 316 | . . . . 45 . 41 . 81 . 47 102 . . Terrain Rammed . | . . . . . . . . . . . . . . Walls Destroyed . | . . . . . . . . . . . . . . Machines Disabled . | . . . . . . . . . . . . . . Actions | -11 -10 -10 -9 -6 -6 -6 -6 -6 -5 -5 -5 -5 -5 --------- Run | Yrd Mat Sub Scr Fac Low Low Zio Dee Pro Fac Upp Upp War Total 9157 | 75 392 43 863 773 282 404 711 1158 384 731 404 349 2588 Wait 1094 | . 209 6 . 56 12 22 3 4 38 58 8 . 678 Move 7549 | 57 172 37 836 640 267 362 673 1076 318 574 362 333 1842 Hop 5 | . . . . . . . . . . . . 3 2 Pick Up 88 | 12 2 . 15 13 1 4 1 16 2 17 1 2 2 Fast Attach 45 | . . . . . . 2 1 10 . 4 2 5 21 Attach 67 | 6 1 . 1 15 2 2 2 2 4 16 11 2 3 Detach 12 | . . . . 2 . 1 1 1 . 2 1 . 4 Swap 21 | . . . 5 4 . 1 1 8 . 2 . . . Drop 83 | . 1 . 6 2 . 3 2 25 . 3 3 3 35 Fire 127 | . 7 . . 31 . 2 . 16 22 37 11 . 1 Melee 36 | . . . . 10 . 5 . . . 15 5 1 . Ram . | . . . . . . . . . . . . . . Kick 3 | . . . . . . . . . . 3 . . . Crush . | . . . . . . . . . . . . . . Escape Stasis . | . . . . . . . . . . . . . . Rewire . | . . . . . . . . . . . . . . Trap . | . . . . . . . . . . . . . . Miscellaneous 27 | . . . . . . . 27 . . . . . . Route ------- -11/Scrapyard -10/Materials (discovered 3 exits: [*Mat] / [*Min] / [*Sub]) -10/Subcaves -9/Scraptown -6/Factory (discovered 3 exits: *Fac x2 / *Low) -6/Lower Caves -6/Lower Caves -6/Zion (discovered 2 exits: *Dee / [*Pro]) -6/Deep Caves -5/Proximity Caves -5/Factory (discovered 2 exits: *Upp x2) -5/Upper Caves -5/Upper Caves -5/Warlord (discovered 1 exit: [*Pro]) History --------- Turn | Location | Event 9 | -11/Scrapyard | Discovered new exit (range 16) 95 | -11/Scrapyard | Entered Materials 111 | -10/Materials | Discovered new exit (range 16) 311 | -10/Materials | Build established: Mutant 351 | -10/Materials | Discovered new exit (range 10) 590 | -10/Materials | Discovered new exit (range 9) 604 | -10/Materials | Entered Subcaves 605 | -10/Subcaves | Approached by a straggling Scientist 654 | -10/Subcaves | Scientist uncovered a shortcut to Scraptown 670 | -10/Subcaves | Entered Scraptown 973 | -9/Scraptown | Visited UFD Registry 973 | -9/Scraptown | Registered with UFD as "Mattersink" 997 | -9/Scraptown | Visited Junk Repository 1039 | -9/Scraptown | Visited Awakened 1104 | -9/Scraptown | Visited CR-KLE's Repair Center 1130 | -9/Scraptown | Visited Cyclists 1141 | -9/Scraptown | Entered Cyclist Reading Room 1259 | -9/Scraptown | Visited DA-N13 Charitable Foundation 1274 | -9/Scraptown | Found DCF Scrap (31 items) 1347 | -9/Scraptown | Visited Curators Association 1443 | -9/Scraptown | Visited Science Testing Area 1488 | -9/Scraptown | Visited Junk Repository 1611 | -9/Scraptown | Visited Abandonware Association 1633 | -9/Scraptown | Learned abandonware demo "REVENGE.EXE" 1805 | -9/Scraptown | CR-KLE repaired 4 parts 2028 | -9/Scraptown | Discovered new exit (range 3) 2035 | -9/Scraptown | Entered Factory 2035 | -6/Factory | Evolved 8 slots: Propulsion x3, Utility x5 2205 | -6/Factory | Discovered new exit (range 16) 2393 | -6/Factory | Identified exit to Factory 2737 | -6/Factory | Discovered exit to Factory (range 13) 3242 | -6/Factory | Discovered new exit (range 6) 3250 | -6/Factory | Identified exit to Lower Caves 3254 | -6/Factory | Entered Lower Caves 3255 | -6/Lower Caves | Encountered a Warlord checkpoint 3617 | -6/Lower Caves | Identified exit to Lower Caves 3697 | -6/Lower Caves | Entered another Lower Caves area 3726 | -6/Lower Caves | Learned location of Extension (-6) 4029 | -6/Lower Caves | Discovered new exit (range 10) 4059 | -6/Lower Caves | Identified exit to Zion 4104 | -6/Lower Caves | Found DCF Scrap (12 items) 4133 | -6/Lower Caves | Entered an active Warlord outpost 4155 | -6/Lower Caves | Learned Armory emergency access door positions 4155 | -6/Lower Caves | Learned Factory security intel 4155 | -6/Lower Caves | Learned Armory security intel 4155 | -6/Lower Caves | Learned Factory terminal intel 4155 | -6/Lower Caves | Learned Research terminal intel 4314 | -6/Lower Caves | Entered Zion 4417 | -6/Zion | System corruption cleaned by Quarantine Array 4454 | -6/Zion | Discovered new exit (range 16) 4594 | -6/Zion | Gained Derelict followers 4948 | -6/Zion | Turned away by Imprinter 5046 | -6/Zion | Build established: Derelict-Mutant 5194 | -6/Zion | Discovered new exit (range 3) 5194 | -6/Zion | Saw the warning signs outside the Deep Caves entrance 5288 | -6/Zion | Identified exit to Deep Caves 5292 | -6/Zion | Entered Deep Caves 5292 | -6/Deep Caves | Accompanied by 5 allies 5453 | -6/Deep Caves | Attacked by Z-Imprinter 5458 | -6/Deep Caves | Z-Facility disabled 5467 | -6/Deep Caves | Destroyed Z-Imprinter 5493 | -6/Deep Caves | Found Prototype Device 5493 | -6/Deep Caves | Identified Zio. Metafield Generator 5505 | -6/Deep Caves | Found Prototype Protection 5505 | -6/Deep Caves | Identified Zio. Weapon Casing 5651 | -6/Deep Caves | Found Zio. Weapon Casing 5654 | -6/Deep Caves | Lost 3 allies 6669 | -6/Deep Caves | Discovered new exit (range 14) 6683 | -6/Deep Caves | Identified exit to Proximity Caves 6685 | -6/Deep Caves | Entered Proximity Caves 6836 | -5/Proximity Caves | Lost 3 parts (1p1n1u) 6998 | -5/Proximity Caves | Build established: Mutant 7092 | -5/Proximity Caves | Learned Factory emergency access door positions 7149 | -5/Proximity Caves | Discovered exit to Factory (range 4) 7153 | -5/Proximity Caves | Entered Factory 7153 | -5/Factory | Evolved 2 slots: Weapon x2 7154 | -5/Factory | Identified exit to Upper Caves 7157 | -5/Factory | Loaded intel: 25 terminal locations 7304 | -5/Factory | Lost 4 parts (1u3w) 7578 | -5/Factory | Lost 4 parts (2u2w) 7640 | -5/Factory | Lost 3 allies 7775 | -5/Factory | Build established: Scavenger-Mutant 8084 | -5/Factory | Entered Upper Caves 8219 | -5/Upper Caves | Attracted the attention of an 0b10 base 8269 | -5/Upper Caves | Destroyed 11 combat bots 8279 | -5/Upper Caves | Core integrity fell below 50% 8318 | -5/Upper Caves | Lost 17 parts (2p8n6u1w) 8321 | -5/Upper Caves | Learned Factory machine intel 8388 | -5/Upper Caves | Discovered new exit (range 7) 8397 | -5/Upper Caves | Found Alien Artifact 8397 | -5/Upper Caves | Identified Core Expander 8397 | -5/Upper Caves | Installed Core Expander, added new Weapon slot 8399 | -5/Upper Caves | Learned 4 Factory zone layouts 8403 | -5/Upper Caves | Identified exit to Upper Caves 8403 | -5/Upper Caves | Entered another Upper Caves area 8412 | -5/Upper Caves | Spotted B-75 Beast 8434 | -5/Upper Caves | Learned Factory non-interactive machine intel 8455 | -5/Upper Caves | System corruption reached 10% 8566 | -5/Upper Caves | Discovered new exit (range 11) 8571 | -5/Upper Caves | Identified exit to Warlord 8572 | -5/Upper Caves | Entered Warlord 8588 | -5/Warlord | System corruption cleaned by Quarantine Array 8593 | -5/Warlord | Build established: Hacker-Mutant 8614 | -5/Warlord | Found Prototype Energy Gun 8614 | -5/Warlord | Identified Plasma Storm 8843 | -5/Warlord | Learned Research trap positions 8843 | -5/Warlord | Learned Testing trap positions 8843 | -5/Warlord | Learned 4 Research zone layouts 8844 | -5/Warlord | Learned Research repair station intel 8844 | -5/Warlord | Learned Factory repair station intel 8844 | -5/Warlord | Learned Testing security intel 8846 | -5/Warlord | Warlord's base attacked by MAIN.C 8881 | -5/Warlord | Rebuked by Warlord 8942 | -5/Warlord | Found Prototype Energy Gun 8942 | -5/Warlord | Identified Vortex Rifle 8944 | -5/Warlord | Found Prototype Launcher 8944 | -5/Warlord | Identified Vortex Catalyst Activator 8948 | -5/Warlord | Found Vortex Rifle 9196 | -5/Warlord | Warlord forces counterattacked 9247 | -5/Warlord | Spotted B-86 Titan 9288 | -5/Warlord | Lost 4 allies 9521 | -5/Warlord | Warlord base infiltrated, sounded retreat 9705 | -5/Warlord | Lost 4 allies 9723 | -5/Warlord | Spotted Executioner 9890 | -5/Warlord | Spotted Executioner 9893 | -5/Warlord | P-70 Sage assimilated allied F3-CXD(K) 9893 | -5/Warlord | Spotted F3-CXD(K) 9902 | -5/Warlord | Discovered new exit (range 14) 9930 | -5/Warlord | Lost 18 allies 9941 | -5/Warlord | Spotted Executioner 10006 | -5/Warlord | Lost 4 allies 10135 | -5/Warlord | Found Corrupted Prototype Launcher 10135 | -5/Warlord | Identified Exp. Neutron Missile Launcher 10145 | -5/Warlord | Core integrity fell below 20% 10152 | -5/Warlord | Destroyed by S-27 Virus with Autogun Last Messages --------------- Identified Prc. Matter Filter. Integrated Corrupted Prc. Matter Filter (+1). Complication: Energy sink damages Corrupted Prc. Matter Filter (-5). Dropped Prc. Matter Filter. Segregator destroyed. Hacking Suite destroyed. Field Propulsion Drive destroyed. ANNOUNCEMENT: Detected 1 Swarmer squad, 1 Programmer squad, 1 Hunter squad, 1 Grunt squad, with prototype support. Slug penetrates Earth. Penetrated by Slug. The unstable cave ceiling collapses. E-15 Imp destroyed. Slug penetrates Earth. Mak. Hammer blown off. Imp. Trap Scanner blown off. Adv. Targeting Computer blown off. E-15 Imp destroyed. Map ----- +----------------------------------------------------+ | % =*= + " "## / ### ##?????#" ##???? | | # /// + + / # ##?####"/"###?? | | =# # ##""" / # #?# #?? | | ##=# !! ##### # ### """ #?? | | # #???# ## """ #?? | | ## ### # #???# + """ #?? | | ## # # #####???# % ^ """ #?? | | ## # ###???????##### ! ## """ #?? | | ## # ###############X## # #?? | | ## # ## *[!!# #?? | | #=+ ## = #?? | | # ####### ## ###?? | | # #?????#++############### ## % #??? | | # #?????# ############??# g % ??? | | # #?????# """""""#??# ## g = #??? | | # #?????# """"#??# #gs ??? | | # #?????#" """"#?##+ #g # # ??? | | #^#?????#"" ! """ #?# # ##? | | #/#######"" |] #?# = ! # % # ## | | # ##"" " #?# # # ## | | # ##"" """### ### # ### | | # ^ ##"" X""""## # # # | | # ^ ##""""""" """# % # # | | /# ##"""""""""""""# # #% | | # #################!%### #### ## % # | | / #?????????????# #@/# # ! = | | ## #?????????????## ##### | | ?# #??????????????# # # # | | ?# ^^ #??????????????## # ## | | "# #???????????????# # =] # | | "# #???????????????## !%! # | | "# #????????????????### = # # | | "########???################ #### ###### | | #???????????# + #????# | | ????????????? ^ # #????? | | ????????????# """" # = #????? | | ????????????# """"^ + #????? | | ????????????# """" " #????? | | ????????????# """" # #????? | | ????????????# # #####+## # # #????? | | ????????????# # ## # # #????? | | ????????????########### ## # #????? | | ????????????###????#### ## ######## #???? | | ??########### ###### ## ###" "##??????^ #???? | | ??# + ## " ""#??????^ #???? | | ??# ############# #####[ ""#?????? #???? | | ??# #???????????# #???# " "##??????# #???? | | ??# #???????????# #???##" "##???????#######???? | | ??######???????????#+#?????####??????????????????? | | ?????????????????? ??????????????????????????? | +----------------------------------------------------+ Best States ------------- Heat Dissipation 92 Energy Generation 27 Energy Capacity 700 Matter Stores 300 Matter Capacity 300 Sight Range 16 Robot Scan Range 15 Terrain Scan Density 10 Armor Coverage 400 Resistance: EM 15 Utility Shielding 66 Weapon Shielding 100 Evasion (%) 84 Targeting Accuracy 24 Launcher Accuracy 20 Core Analysis 6 Recoil Reduction 5 Offensive Hacking 24 Defensive Hacking 10 Item Schematics ----------------- None Robot Schematics ------------------ None Fabricated ------------ Nothing Repaired ---------- Nothing Alien Tech Used ----------------- Core Expander Achievements -------------- Are We The Baddies? Challenges ------------ None Game ------ Seed ShockColdDriver Manual? 1 Play Time 01:40:22 Cumulative 220.9 hours Start 2025.09.16 @ 15:11:40 End 2025.09.16 @ 19:30:36 Sessions 5 Manual Loads 0 Difficulty Rogue Special Mode None Game No. 196 Rogue 196 Adventurer 0 Explorer 0 Win Type - Total 12 Types 6/0/2/2/1/0/0/0/0/1 Lore% 93 Gallery% 86 Achievement% 72 Wizard Run 0 Options --------- Layout 1 ASCII 0 Keyboard 0 Movement Numpad Keybinds 0 Fullscreen 1 Font 24/Proggy Map View 50x35 Zoom Use 0% Tactical HUD 0 Map Filters NONE Filters NONE Steam 1 RUN: ad2d835c-d400-4856-ba63-90d54687eb09